[Event "Titled Tuesday Blitz January 17 Early 2023"]
[White "Bazarov, Konstantin"]
[Black "Dimitrov, Atanas"]
[WhiteFideId "4137000"]
[BlackFideId "2901315"]
[WhiteElo "2235"]
[BlackElo "2269"]
[Result "0-1"]
[Round "08"]
[TimeControl "180+2"]
[Date "2023.01.17"]
[WhiteClock "0:00:07"]
[BlackClock "0:00:06"]

1. d4 {[%clk 0:03:00]}  Nf6 {[%clk 0:02:57]} 2. c4 {[%clk 0:03:00]}  g6 {[%clk 0:02:55]} 3. Nc3 {[%clk 0:02:57]}  d5 {[%clk 0:02:55]} 4. Bg5 {[%clk 0:02:56]}  Ne4 {[%clk 0:02:54]} 5. Bh4 {[%clk 0:02:57]}  Nxc3 {[%clk 0:02:42]} 6. bxc3 {[%clk 0:02:57]}  Bg7 {[%clk 0:02:41]} 7. e3 {[%clk 0:02:57]}  c6 {[%clk 0:02:39]} 8. Nf3 {[%clk 0:02:56]}  Bg4 {[%clk 0:02:35]} 9. Be2 {[%clk 0:02:50]}  O-O {[%clk 0:02:28]} 10. Qb3 {[%clk 0:02:46]}  b6 {[%clk 0:02:22]} 11. h3 {[%clk 0:02:43]}  Bxf3 {[%clk 0:02:20]} 12. Bxf3 {[%clk 0:02:42]}  Nd7 {[%clk 0:02:15]} 13. cxd5 {[%clk 0:02:41]}  cxd5 {[%clk 0:02:14]} 14. Bxd5 {[%clk 0:02:37]}  Rc8 {[%clk 0:02:13]} 15. O-O {[%clk 0:02:33]}  Nf6 {[%clk 0:02:11]} 16. Bf3 {[%clk 0:02:31]}  Qc7 {[%clk 0:02:10]} 17. Rac1 {[%clk 0:02:28]}  Qc4 {[%clk 0:01:54]} 18. Qb2 {[%clk 0:02:23]}  e5 {[%clk 0:01:35]} 19. Be2 {[%clk 0:02:18]}  Qa4 {[%clk 0:01:35]} 20. Bb5 {[%clk 0:02:08]}  Qa5 {[%clk 0:01:30]} 21. Rfd1 {[%clk 0:01:53]}  Ne4 {[%clk 0:01:06]} 22. c4 {[%clk 0:01:44]}  exd4 {[%clk 0:01:00]} 23. exd4 {[%clk 0:01:40]}  Nd6 {[%clk 0:00:44]} 24. Be7 {[%clk 0:01:17]}  Nf5 {[%clk 0:00:39]} 25. Bxf8 {[%clk 0:01:16]}  Rxf8 {[%clk 0:00:39]} 26. Bd7 {[%clk 0:01:09]}  Nh4 {[%clk 0:00:37]} 27. Qd2 {[%clk 0:00:59]}  Rd8 {[%clk 0:00:29]} 28. Qxa5 {[%clk 0:00:57]}  bxa5 {[%clk 0:00:29]} 29. Bb5 {[%clk 0:00:43]}  Nf5 {[%clk 0:00:25]} 30. c5 {[%clk 0:00:35]}  Nxd4 {[%clk 0:00:24]} 31. c6 {[%clk 0:00:31]}  Rc8 {[%clk 0:00:21]} 32. Ba4 {[%clk 0:00:28]}  Ne2+ {[%clk 0:00:19]} 33. Kf1 {[%clk 0:00:27]}  Nxc1 {[%clk 0:00:20]} 34. Rxc1 {[%clk 0:00:27]}  Bd4 {[%clk 0:00:21]} 35. Rd1 {[%clk 0:00:27]}  Bb6 {[%clk 0:00:21]} 36. Rd7 {[%clk 0:00:24]}  Rc7 {[%clk 0:00:20]} 37. Rd2 {[%clk 0:00:22]}  Kg7 {[%clk 0:00:20]} 38. g3 {[%clk 0:00:22]}  h5 {[%clk 0:00:20]} 39. Kg2 {[%clk 0:00:23]}  Kf6 {[%clk 0:00:21]} 40. Rd6+ {[%clk 0:00:22]}  Ke7 {[%clk 0:00:21]} 41. Rd2 {[%clk 0:00:21]}  Kf6 {[%clk 0:00:20]} 42. Kf3 {[%clk 0:00:21]}  Ke5 {[%clk 0:00:18]} 43. Re2+ {[%clk 0:00:21]}  Kd5 {[%clk 0:00:18]} 44. Re4 {[%clk 0:00:18]}  Kc5 {[%clk 0:00:17]} 45. g4 {[%clk 0:00:18]}  hxg4+ {[%clk 0:00:17]} 46. hxg4 {[%clk 0:00:18]}  Kd5 {[%clk 0:00:17]} 47. Rf4 {[%clk 0:00:17]}  Ke5 {[%clk 0:00:15]} 48. Re4+ {[%clk 0:00:17]}  Kd6 {[%clk 0:00:14]} 49. Re8 {[%clk 0:00:16]}  Kc5 {[%clk 0:00:10]} 50. Ke2 {[%clk 0:00:14]}  Kb4 {[%clk 0:00:09]} 51. Re4+ {[%clk 0:00:14]}  Ka3 {[%clk 0:00:08]} 52. f3 {[%clk 0:00:12]}  f5 {[%clk 0:00:07]} 53. gxf5 {[%clk 0:00:12]}  gxf5 {[%clk 0:00:07]} 54. Rc4 {[%clk 0:00:12]}  Re7+ {[%clk 0:00:07]} 55. Kf1 {[%clk 0:00:10]}  Kb2 {[%clk 0:00:07]} 56. Kg2 {[%clk 0:00:09]}  Kxa2 {[%clk 0:00:08]} 57. Kg3 {[%clk 0:00:09]}  Bc7+ {[%clk 0:00:08]} 58. Kh4 {[%clk 0:00:09]}  Rg7 {[%clk 0:00:08]} 59. Rc5 {[%clk 0:00:07]}  Rf7 {[%clk 0:00:04]} 60. Kg5 {[%clk 0:00:06]}  f4 {[%clk 0:00:05]} 61. Kg6 {[%clk 0:00:06]}  Re7 {[%clk 0:00:05]} 62. Rd5 {[%clk 0:00:06]}  Re6+ {[%clk 0:00:03]} 63. Kf5 {[%clk 0:00:05]}  Re3 {[%clk 0:00:03]} 64. Rd7 {[%clk 0:00:04]}  Bb6 {[%clk 0:00:04]} 65. Rb7 {[%clk 0:00:04]}  Rxf3 {[%clk 0:00:03]} 66. Ke6 {[%clk 0:00:04]}  Rc3 {[%clk 0:00:03]} 67. Kd6 {[%clk 0:00:04]}  f3 {[%clk 0:00:03]} 68. Rf7 {[%clk 0:00:05]}  f2 {[%clk 0:00:03]} 69. Bb5 {[%clk 0:00:05]}  Kb3 {[%clk 0:00:03]} 70. Ba6 {[%clk 0:00:05]}  a4 {[%clk 0:00:03]} 71. Kd7 {[%clk 0:00:05]}  a3 {[%clk 0:00:03]} 72. Rf5 {[%clk 0:00:05]}  a2 {[%clk 0:00:04]} 73. Rb5+ {[%clk 0:00:06]}  Kc2 {[%clk 0:00:04]} 74. Rf5 {[%clk 0:00:06]}  a1=Q {[%clk 0:00:03]} 75. Rxf2+ {[%clk 0:00:07]}  Kb3 {[%clk 0:00:04]} 76. Rb2+ {[%clk 0:00:07]}  Qxb2 {[%clk 0:00:03]} 77. c7 {[%clk 0:00:07]}  Qd2+ {[%clk 0:00:04]} 78. Ke6 {[%clk 0:00:06]}  Rxc7 {[%clk 0:00:04]} 79. Kf5 {[%clk 0:00:07]}  Qd7+ {[%clk 0:00:05]} 80. Ke5 {[%clk 0:00:06]}  Rc5+ {[%clk 0:00:05]} 81. Ke4 {[%clk 0:00:07]}  Qd5+ {[%clk 0:00:06]} 0-1


[Site "https://www.chess.com"]

[Event "Titled Tuesday Blitz January 17 Early 2023"]
[White "Kozin, Yuri"]
[Black "Gurvich, Vitaly"]
[WhiteFideId "4129920"]
[BlackFideId "24164852"]
[WhiteElo "2251"]
[BlackElo "2278"]
[Result "0-1"]
[Round "08"]
[TimeControl "180+2"]
[Date "2023.01.17"]
[WhiteClock "0:00:44"]
[BlackClock "0:01:19"]

1. e4 {[%clk 0:02:57]}  d6 {[%clk 0:02:58]} 2. d4 {[%clk 0:02:57]}  e6 {[%clk 0:02:57]} 3. Nc3 {[%clk 0:02:57]}  Be7 {[%clk 0:02:58]} 4. Bd3 {[%clk 0:02:56]}  Nc6 {[%clk 0:02:58]} 5. Nge2 {[%clk 0:02:55]}  Nf6 {[%clk 0:02:36]} 6. Be3 {[%clk 0:02:42]}  O-O {[%clk 0:02:36]} 7. Ng3 {[%clk 0:02:40]}  e5 {[%clk 0:02:35]} 8. d5 {[%clk 0:02:40]}  Nb4 {[%clk 0:02:35]} 9. Qd2 {[%clk 0:02:38]}  Ng4 {[%clk 0:02:34]} 10. a3 {[%clk 0:02:25]}  Nxd3+ {[%clk 0:02:34]} 11. Qxd3 {[%clk 0:02:26]}  Nxe3 {[%clk 0:02:34]} 12. Qxe3 {[%clk 0:02:27]}  g6 {[%clk 0:02:34]} 13. O-O {[%clk 0:02:16]}  Bg5 {[%clk 0:02:32]} 14. Qd3 {[%clk 0:02:13]}  f5 {[%clk 0:02:33]} 15. f3 {[%clk 0:02:08]}  f4 {[%clk 0:02:29]} 16. Nge2 {[%clk 0:02:08]}  h5 {[%clk 0:02:29]} 17. Kf2 {[%clk 0:02:05]}  Bh6 {[%clk 0:02:27]} 18. Ke1 {[%clk 0:02:06]}  g5 {[%clk 0:02:27]} 19. Kd2 {[%clk 0:02:06]}  g4 {[%clk 0:02:26]} 20. Rad1 {[%clk 0:02:04]}  Kg7 {[%clk 0:02:25]} 21. Kc1 {[%clk 0:02:04]}  Bd7 {[%clk 0:02:22]} 22. Kb1 {[%clk 0:02:03]}  b5 {[%clk 0:02:10]} 23. Nxb5 {[%clk 0:01:59]}  Qb8 {[%clk 0:02:10]} 24. Nbc3 {[%clk 0:01:58]}  Qb6 {[%clk 0:02:10]} 25. Na2 {[%clk 0:01:50]}  Rfb8 {[%clk 0:02:09]} 26. Qc3 {[%clk 0:01:40]}  a5 {[%clk 0:02:06]} 27. Ka1 {[%clk 0:01:39]}  Kg6 {[%clk 0:02:06]} 28. Rb1 {[%clk 0:01:38]}  Bb5 {[%clk 0:02:05]} 29. Qd2 {[%clk 0:01:36]}  Bc4 {[%clk 0:02:03]} 30. Rg1 {[%clk 0:01:31]}  Qc5 {[%clk 0:01:55]} 31. h3 {[%clk 0:01:19]}  g3 {[%clk 0:01:53]} 32. Nec1 {[%clk 0:01:12]}  Qxg1 {[%clk 0:01:50]} 33. Nd3 {[%clk 0:01:10]}  Qb6 {[%clk 0:01:45]} 34. Qc3 {[%clk 0:01:03]}  Qb5 {[%clk 0:01:22]} 35. Nxe5+ {[%clk 0:01:02]}  dxe5 {[%clk 0:01:22]} 36. Qxe5 {[%clk 0:01:03]}  Bxa2 {[%clk 0:01:20]} 37. Qe6+ {[%clk 0:00:54]}  Kg7 {[%clk 0:01:19]} 38. Qe7+ {[%clk 0:00:54]}  Kh8 {[%clk 0:01:19]} 39. Kxa2 {[%clk 0:00:49]}  Bg7 {[%clk 0:01:19]} 40. e5 {[%clk 0:00:44]}  Qxd5+ {[%clk 0:01:18]} 41. Ka1 {[%clk 0:00:44]}  Qxe5 {[%clk 0:01:19]} 0-1


[Site "https://www.chess.com"]

[Event "Titled Tuesday Blitz January 17 Early 2023"]
[White "Balabayeva, Xeniya"]
[Black "Domingo Nunez, Ruben"]
[WhiteFideId "13719688"]
[BlackFideId "22245570"]
[WhiteElo "2191"]
[BlackElo "2416"]
[Result "1-0"]
[Round "08"]
[TimeControl "180+2"]
[Date "2023.01.17"]
[WhiteClock "0:00:06"]
[BlackClock "0:00:02"]

1. d4 {[%clk 0:03:00]}  g6 {[%clk 0:03:00]} 2. c4 {[%clk 0:02:53]}  Bg7 {[%clk 0:03:00]} 3. Nc3 {[%clk 0:02:53]}  d6 {[%clk 0:03:00]} 4. e4 {[%clk 0:02:53]}  Nd7 {[%clk 0:03:00]} 5. h3 {[%clk 0:02:53]}  e5 {[%clk 0:03:00]} 6. Be3 {[%clk 0:02:52]}  h5 {[%clk 0:02:58]} 7. Be2 {[%clk 0:02:48]}  Bh6 {[%clk 0:02:56]} 8. Bxh6 {[%clk 0:02:43]}  Nxh6 {[%clk 0:02:55]} 9. Nf3 {[%clk 0:02:41]}  f6 {[%clk 0:02:52]} 10. Nh4 {[%clk 0:02:26]}  Nf8 {[%clk 0:02:52]} 11. Qd2 {[%clk 0:02:00]}  Be6 {[%clk 0:02:49]} 12. O-O-O {[%clk 0:01:58]}  Qe7 {[%clk 0:02:46]} 13. d5 {[%clk 0:01:36]}  Bd7 {[%clk 0:02:45]} 14. Nf3 {[%clk 0:01:33]}  Nf7 {[%clk 0:02:26]} 15. h4 {[%clk 0:01:20]}  O-O-O {[%clk 0:02:14]} 16. Kb1 {[%clk 0:01:15]}  Kb8 {[%clk 0:02:14]} 17. Rc1 {[%clk 0:01:13]}  f5 {[%clk 0:02:13]} 18. Bd3 {[%clk 0:01:12]}  f4 {[%clk 0:02:10]} 19. Rc2 {[%clk 0:01:10]}  g5 {[%clk 0:02:10]} 20. hxg5 {[%clk 0:01:09]}  Nxg5 {[%clk 0:02:11]} 21. Nxg5 {[%clk 0:00:52]}  Qxg5 {[%clk 0:02:12]} 22. f3 {[%clk 0:00:51]}  h4 {[%clk 0:02:11]} 23. Nb5 {[%clk 0:00:42]}  a6 {[%clk 0:01:13]} 24. Na3 {[%clk 0:00:31]}  h3 {[%clk 0:01:02]} 25. gxh3 {[%clk 0:00:30]}  Rxh3 {[%clk 0:01:00]} 26. Rhc1 {[%clk 0:00:29]}  Rxf3 {[%clk 0:00:49]} 27. c5 {[%clk 0:00:28]}  dxc5 {[%clk 0:00:41]} 28. Rxc5 {[%clk 0:00:26]}  Qg3 {[%clk 0:00:42]} 29. Bxa6 {[%clk 0:00:22]}  bxa6 {[%clk 0:00:17]} 30. Rxc7 {[%clk 0:00:09]}  Ka8 {[%clk 0:00:16]} 31. Qa5 {[%clk 0:00:07]}  Rxa3 {[%clk 0:00:13]} 32. Qb6 {[%clk 0:00:06]}  Qd3+ {[%clk 0:00:07]} 33. Ka1 {[%clk 0:00:06]}  Rxa2+ {[%clk 0:00:02]} 34. Kxa2 {[%clk 0:00:07]}  Qd4 {[%clk 0:00:02]} 35. Qb7# {[%clk 0:00:06]} 1-0


[Site "https://www.chess.com"]

[Event "Titled Tuesday Blitz January 17 Early 2023"]
[White "Averjanov, Alexey"]
[Black "Musovic, Armin"]
[WhiteFideId "14109867"]
[BlackFideId "939935"]
[WhiteElo "2399"]
[BlackElo "2261"]
[Result "0-1"]
[Round "08"]
[TimeControl "180+2"]
[Date "2023.01.17"]
[WhiteClock "0:00:13"]
[BlackClock "0:00:53"]

1. d4 {[%clk 0:03:00]}  d5 {[%clk 0:03:00]} 2. c4 {[%clk 0:03:00]}  c5 {[%clk 0:03:01]} 3. dxc5 {[%clk 0:02:59]}  d4 {[%clk 0:03:00]} 4. Nf3 {[%clk 0:02:59]}  Nc6 {[%clk 0:03:00]} 5. a3 {[%clk 0:02:58]}  a5 {[%clk 0:02:59]} 6. e3 {[%clk 0:02:57]}  e5 {[%clk 0:02:59]} 7. exd4 {[%clk 0:02:57]}  exd4 {[%clk 0:03:00]} 8. Nbd2 {[%clk 0:02:56]}  Qe7+ {[%clk 0:02:59]} 9. Qe2 {[%clk 0:02:55]}  Nf6 {[%clk 0:02:59]} 10. Nb3 {[%clk 0:02:49]}  Bg4 {[%clk 0:02:56]} 11. Qxe7+ {[%clk 0:02:43]}  Bxe7 {[%clk 0:02:57]} 12. Nfxd4 {[%clk 0:02:42]}  O-O-O {[%clk 0:02:56]} 13. Be3 {[%clk 0:02:37]}  Nxd4 {[%clk 0:02:53]} 14. Bxd4 {[%clk 0:02:24]}  a4 {[%clk 0:02:51]} 15. f3 {[%clk 0:02:06]}  Bh5 {[%clk 0:02:23]} 16. c6 {[%clk 0:01:27]}  axb3 {[%clk 0:02:17]} 17. cxb7+ {[%clk 0:01:26]}  Kxb7 {[%clk 0:02:16]} 18. Be3 {[%clk 0:01:20]}  Rhe8 {[%clk 0:01:59]} 19. Kf2 {[%clk 0:01:17]}  Nd7 {[%clk 0:01:45]} 20. Be2 {[%clk 0:01:15]}  Bc5 {[%clk 0:01:42]} 21. Bxc5 {[%clk 0:01:11]}  Nxc5 {[%clk 0:01:42]} 22. Rhd1 {[%clk 0:01:02]}  Bg6 {[%clk 0:01:40]} 23. a4 {[%clk 0:00:57]}  Bc2 {[%clk 0:01:38]} 24. Rd5 {[%clk 0:00:54]}  Rxd5 {[%clk 0:01:34]} 25. cxd5 {[%clk 0:00:55]}  Kc7 {[%clk 0:01:28]} 26. Bb5 {[%clk 0:00:52]}  Nd3+ {[%clk 0:01:17]} 27. Kg3 {[%clk 0:00:50]}  Rd8 {[%clk 0:01:15]} 28. Bc4 {[%clk 0:00:40]}  Nxb2 {[%clk 0:01:11]} 29. Bxb3 {[%clk 0:00:38]}  Bxb3 {[%clk 0:01:12]} 30. Rb1 {[%clk 0:00:35]}  Bxd5 {[%clk 0:01:08]} 31. Rxb2 {[%clk 0:00:36]}  Ra8 {[%clk 0:01:08]} 32. Rb4 {[%clk 0:00:32]}  Bc6 {[%clk 0:01:06]} 33. Rh4 {[%clk 0:00:29]}  h6 {[%clk 0:01:05]} 34. Rg4 {[%clk 0:00:29]}  g5 {[%clk 0:01:05]} 35. Rc4 {[%clk 0:00:24]}  Rxa4 {[%clk 0:01:05]} 36. Rxa4 {[%clk 0:00:20]}  Bxa4 {[%clk 0:01:06]} 37. Kg4 {[%clk 0:00:19]}  Kd6 {[%clk 0:01:04]} 38. Kh5 {[%clk 0:00:19]}  Ke5 {[%clk 0:00:58]} 39. Kxh6 {[%clk 0:00:17]}  f6 {[%clk 0:00:58]} 40. Kg7 {[%clk 0:00:15]}  Bc6 {[%clk 0:00:54]} 41. h3 {[%clk 0:00:13]}  Kf5 {[%clk 0:00:53]} 42. Kh6 {[%clk 0:00:11]}  Bb5 {[%clk 0:00:49]} 43. h4 {[%clk 0:00:09]}  gxh4 {[%clk 0:00:41]} 44. Kh5 {[%clk 0:00:09]}  Bf1 {[%clk 0:00:42]} 45. Kxh4 {[%clk 0:00:07]}  Bxg2 {[%clk 0:00:42]} 46. Kg3 {[%clk 0:00:06]}  Bf1 {[%clk 0:00:42]} 47. Kf2 {[%clk 0:00:06]}  Ba6 {[%clk 0:00:43]} 48. Ke3 {[%clk 0:00:07]}  Bb7 {[%clk 0:00:43]} 49. Kf2 {[%clk 0:00:07]}  Kf4 {[%clk 0:00:44]} 50. Kg2 {[%clk 0:00:07]}  Bxf3+ {[%clk 0:00:44]} 51. Kf2 {[%clk 0:00:08]}  Bc6 {[%clk 0:00:45]} 52. Kg1 {[%clk 0:00:09]}  Be8 {[%clk 0:00:46]} 53. Kg2 {[%clk 0:00:09]}  f5 {[%clk 0:00:47]} 54. Kf2 {[%clk 0:00:09]}  Kg5 {[%clk 0:00:47]} 55. Kg2 {[%clk 0:00:10]}  f4 {[%clk 0:00:48]} 56. Kf3 {[%clk 0:00:10]}  Kf5 {[%clk 0:00:49]} 57. Kf2 {[%clk 0:00:10]}  Ke4 {[%clk 0:00:50]} 58. Ke2 {[%clk 0:00:11]}  f3+ {[%clk 0:00:51]} 59. Kf2 {[%clk 0:00:12]}  Kf4 {[%clk 0:00:52]} 60. Kf1 {[%clk 0:00:12]}  Kg3 {[%clk 0:00:52]} 61. Kg1 {[%clk 0:00:13]}  Bb5 {[%clk 0:00:52]} 62. Kh1 {[%clk 0:00:13]}  Ba6 {[%clk 0:00:52]} 63. Kg1 {[%clk 0:00:13]}  f2+ {[%clk 0:00:53]} 64. Kh1 {[%clk 0:00:13]}  f1=Q# {[%clk 0:00:53]} 0-1


[Site "https://www.chess.com"]

[Event "Titled Tuesday Blitz January 17 Early 2023"]
[White "Gauri, Shankar"]
[Black "Santos Flores, Alberto"]
[WhiteFideId "5041350"]
[BlackFideId "3601234"]
[WhiteElo "2360"]
[BlackElo "2164"]
[Result "1/2-1/2"]
[Round "08"]
[TimeControl "180+2"]
[Date "2023.01.17"]
[WhiteClock "0:00:10"]
[BlackClock "0:00:06"]

1. Nf3 {[%clk 0:02:57]}  d5 {[%clk 0:02:58]} 2. d4 {[%clk 0:02:53]}  Nf6 {[%clk 0:02:58]} 3. c4 {[%clk 0:02:53]}  c6 {[%clk 0:02:58]} 4. cxd5 {[%clk 0:02:45]}  cxd5 {[%clk 0:02:58]} 5. Nc3 {[%clk 0:02:45]}  Nc6 {[%clk 0:02:58]} 6. Bf4 {[%clk 0:02:46]}  a6 {[%clk 0:02:58]} 7. e3 {[%clk 0:02:46]}  Bg4 {[%clk 0:02:58]} 8. Be2 {[%clk 0:02:44]}  e6 {[%clk 0:02:58]} 9. Rc1 {[%clk 0:02:41]}  Be7 {[%clk 0:02:58]} 10. h3 {[%clk 0:02:39]}  Bxf3 {[%clk 0:02:58]} 11. Bxf3 {[%clk 0:02:39]}  O-O {[%clk 0:02:58]} 12. O-O {[%clk 0:02:38]}  Rc8 {[%clk 0:02:57]} 13. Na4 {[%clk 0:02:27]}  Nd7 {[%clk 0:02:57]} 14. a3 {[%clk 0:02:25]}  b5 {[%clk 0:02:52]} 15. Nc5 {[%clk 0:02:23]}  Nxc5 {[%clk 0:02:52]} 16. dxc5 {[%clk 0:02:24]}  Na5 {[%clk 0:02:42]} 17. b4 {[%clk 0:02:13]}  Nc4 {[%clk 0:02:41]} 18. a4 {[%clk 0:02:08]}  Nb2 {[%clk 0:02:21]} 19. Qb3 {[%clk 0:02:03]}  Nxa4 {[%clk 0:02:21]} 20. Rfd1 {[%clk 0:01:57]}  a5 {[%clk 0:01:57]} 21. e4 {[%clk 0:01:52]}  axb4 {[%clk 0:01:25]} 22. exd5 {[%clk 0:01:51]}  Nxc5 {[%clk 0:01:25]} 23. Qxb4 {[%clk 0:01:27]}  Nd3 {[%clk 0:01:24]} 24. Rxc8 {[%clk 0:01:27]}  Qxc8 {[%clk 0:01:03]} 25. Qxe7 {[%clk 0:01:24]}  Nxf4 {[%clk 0:01:04]} 26. d6 {[%clk 0:01:21]}  Qd8 {[%clk 0:00:30]} 27. Qb7 {[%clk 0:00:59]}  Qb8 {[%clk 0:00:19]} 28. d7 {[%clk 0:00:15]}  Qxb7 {[%clk 0:00:19]} 29. Bxb7 {[%clk 0:00:15]}  Rd8 {[%clk 0:00:19]} 30. Bc6 {[%clk 0:00:16]}  b4 {[%clk 0:00:17]} 31. g3 {[%clk 0:00:09]}  Ng6 {[%clk 0:00:16]} 32. f4 {[%clk 0:00:07]}  Kf8 {[%clk 0:00:16]} 33. Rb1 {[%clk 0:00:06]}  Ne7 {[%clk 0:00:16]} 34. Ba4 {[%clk 0:00:06]}  Nd5 {[%clk 0:00:16]} 35. Bc6 {[%clk 0:00:06]}  Ke7 {[%clk 0:00:15]} 36. Kf2 {[%clk 0:00:05]}  Kd6 {[%clk 0:00:14]} 37. Ba4 {[%clk 0:00:05]}  Kc5 {[%clk 0:00:11]} 38. Kf3 {[%clk 0:00:03]}  Nc3 {[%clk 0:00:11]} 39. Rc1 {[%clk 0:00:03]}  Kd6 {[%clk 0:00:08]} 40. Bb3 {[%clk 0:00:01]}  Rxd7 {[%clk 0:00:08]} 41. Ra1 {[%clk 0:00:02]}  Rc7 {[%clk 0:00:07]} 42. Ra5 {[%clk 0:00:02]}  Nd5 {[%clk 0:00:07]} 43. Ba4 {[%clk 0:00:01]}  Rc3+ {[%clk 0:00:07]} 44. Kf2 {[%clk 0:00:02]}  Ra3 {[%clk 0:00:07]} 45. Ra6+ {[%clk 0:00:02]}  Kc5 {[%clk 0:00:07]} 46. Rc6+ {[%clk 0:00:03]}  Kd4 {[%clk 0:00:07]} 47. Bb5 {[%clk 0:00:04]}  Nc3 {[%clk 0:00:07]} 48. Rc4+ {[%clk 0:00:04]}  Kd5 {[%clk 0:00:07]} 49. Rxb4 {[%clk 0:00:05]}  Nxb5 {[%clk 0:00:07]} 50. Rxb5+ {[%clk 0:00:05]}  Kd6 {[%clk 0:00:08]} 51. Rb6+ {[%clk 0:00:06]}  Ke7 {[%clk 0:00:08]} 52. Rb7+ {[%clk 0:00:06]}  Kf6 {[%clk 0:00:09]} 53. h4 {[%clk 0:00:07]}  h5 {[%clk 0:00:08]} 54. Rb5 {[%clk 0:00:07]}  g6 {[%clk 0:00:08]} 55. Rb7 {[%clk 0:00:08]}  Ra5 {[%clk 0:00:08]} 56. Rb6 {[%clk 0:00:07]}  Kf5 {[%clk 0:00:07]} 57. Rb7 {[%clk 0:00:07]}  f6 {[%clk 0:00:07]} 58. Rg7 {[%clk 0:00:07]}  e5 {[%clk 0:00:06]} 59. fxe5 {[%clk 0:00:06]}  Rxe5 {[%clk 0:00:07]} 60. Rg8 {[%clk 0:00:07]}  Ra5 {[%clk 0:00:06]} 61. Kf3 {[%clk 0:00:07]}  Ra3+ {[%clk 0:00:06]} 62. Kf2 {[%clk 0:00:08]}  g5 {[%clk 0:00:06]} 63. hxg5 {[%clk 0:00:08]}  fxg5 {[%clk 0:00:06]} 64. Rb8 {[%clk 0:00:08]}  Ra4 {[%clk 0:00:05]} 65. Rb3 {[%clk 0:00:07]}  Kg4 {[%clk 0:00:05]} 66. Rb2 {[%clk 0:00:07]}  Rc4 {[%clk 0:00:05]} 67. Kg2 {[%clk 0:00:07]}  Rc3 {[%clk 0:00:04]} 68. Rb4+ {[%clk 0:00:07]}  Kf5 {[%clk 0:00:05]} 69. Rb5+ {[%clk 0:00:08]}  Kg6 {[%clk 0:00:05]} 70. Rb6+ {[%clk 0:00:08]}  Kf5 {[%clk 0:00:06]} 71. Rb5+ {[%clk 0:00:09]}  Kf6 {[%clk 0:00:06]} 72. Rb6+ {[%clk 0:00:10]}  Kf5 {[%clk 0:00:06]} 73. Rb5+ {[%clk 0:00:10]} 1/2-1/2


[Site "https://www.chess.com"]